bitfinex-derivatives/quotes_ETHF0:USTF0_20241004
["timestamp","ask_amount","ask_price","bid_price","bid_amount"]
[1728038279667,0.42017,2380.3,2380.2,0.7845]
[1728038279877,0.42017,2380.3,2380.2,1.20469]
[1728038281161,1.46806,2380.5,2380.2,0.7845]
[1728038281162,0.4177,2380.5,2380.2,0.7845]
[1728038281359,0.42016,2380.4,2380.3,1.93016]
[1728038281966,0.4177,2380.5,2380.3,1.93016]
[1728038282165,0.83784,2380.5,2380.4,1.93016]
[1728038282572,0.83784,2380.5,2380.4,1.51]
[1728038282963,0.83784,2380.5,2380.4,1.9197]
[1728038283565,0.83784,2380.5,2380.2,0.7845]
[1728038283766,0.42017,2380.3,2380.2,2.71468]
[1728038284872,0.42016,2380.4,2380.3,0.42016]
[1728038287273,0.42017,2380.3,2380.2,2.71468]
[1728038288477,0.42017,2380.3,2380.2,1.51]
[1728038290278,0.4177,2380.5,2380.2,1.51]
[1728038290479,0.42016,2380.4,2380.2,1.93018]
[1728038290782,0.42017,2380.3,2380.2,1.93018]
[1728038296582,1.46807,2380.5,2380.2,1.51]
[1728038296781,0.42012,2380.6,2380.4,1.93016]
[1728038296982,0.42011,2380.7,2380.6,0.42011]
[1728038297189,0.4149,2380.8,2380.5,4.7178]
[1728038297379,0.42011,2380.7,2380.6,1.21912]
[1728038297687,0.42011,2380.7,2380.6,2.72912]
[1728038298177,0.42011,2380.7,2380.6,3.15762]
[1728038298574,0.83499,2380.8,2380.7,0.4201]
[1728038298778,0.42009,2380.8,2380.7,0.42009]
[1728038300186,0.4201,2380.7,2380.6,3.15761]
[1728038300592,0.4201,2380.8,2380.7,0.4201]
[1728038300782,0.4201,2380.8,2380.7,1.9301]
[1728038300978,3.6227,2381.0,2380.7,1.9301]
[1728038301181,0.42007,2380.9,2380.8,0.42007]
[1728038302090,0.83496,2381.0,2380.9,0.42007]
[1728038302290,0.42006,2381.0,2380.9,1.51]
[1728038302888,0.42006,2381.0,2380.9,1.9296]
[1728038304789,0.81564,2381.1,2380.9,2.34965]
[1728038305083,0.81564,2381.1,2381.0,0.8217]
[1728038310098,0.42003,2381.1,2381.0,1.24174]
[1728038310496,0.42003,2381.1,2381.0,0.8217]
[1728038314099,0.42003,2381.1,2381.0,1.24175]
[1728038315691,0.42003,2381.1,2381.0,0.8217]
[1728038315908,0.42003,2381.1,2381.0,1.24175]
[1728038317703,0.42003,2381.1,2381.0,0.8217]
[1728038320498,6.17451,2381.3,2380.9,1.9296]
[1728038320698,0.83265,2381.0,2380.9,1.9296]
[1728038321602,0.42005,2381.0,2380.9,1.9296]
[1728038322503,1.46708,2381.2,2380.9,0.4196]
[1728038322704,0.42005,2381.0,2380.9,1.9296]
[1728038323000,0.42005,2381.0,2380.9,2.76086]
[1728038323205,0.42005,2381.0,2380.9,2.3408]
[1728038326605,0.42005,2381.0,2380.9,0.8308]
[1728038326807,0.42005,2381.0,2380.9,2.3408]
[1728038337709,0.42005,2381.0,2380.9,2.76086]
[1728038337916,0.42005,2381.0,2380.9,2.3408]
[1728038338215,0.42005,2381.0,2380.9,2.76087]
[1728038338413,0.42005,2381.0,2380.9,2.3408]
[1728038338809,0.42005,2381.0,2380.9,2.76087]
[1728038341414,1.05004,2381.2,2380.9,2.76087]
[1728038341713,0.42005,2381.1,2381.0,0.4225]
[1728038343420,0.42005,2381.1,2381.0,1.9325]
[1728038347630,0.42005,2381.0,2380.9,2.3408]
[1728038349031,0.42005,2381.0,2380.9,2.767]
[1728038356634,0.42005,2381.0,2380.9,1.257]
[1728038363132,0.42012,2380.6,2380.5,0.098]
[1728038363335,0.42012,2380.6,2380.5,1.9354]
[1728038366652,0.42007,2380.9,2380.7,0.42009]
[1728038366943,0.42007,2380.9,2380.8,1.2165]
[1728038367643,0.4266,2381.1,2380.8,1.2165]
[1728038367848,0.42006,2381.0,2380.9,0.42007]
[1728038368037,0.42006,2381.0,2380.9,1.93007]
[1728038369233,0.42006,2381.0,2380.9,1.51]
[1728038370258,0.42006,2381.0,2380.9,1.93007]
[1728038371648,2.56008,2381.2,2380.8,2.7265]
[1728038371850,0.42007,2380.9,2380.8,2.7265]
[1728038372249,0.42007,2380.9,2380.8,3.14658]
[1728038372750,0.42007,2380.9,2380.8,2.7265]
[1728038374344,0.42007,2380.9,2380.8,1.2165]
[1728038377356,1.05012,2381.1,2380.8,3.14658]
[1728038377550,0.42007,2380.9,2380.8,2.7265]
[1728038377758,0.41999,2381.4,2381.2,0.42]
[1728038377955,0.41998,2381.4,2381.3,2.6926]
[1728038378150,0.41998,2381.4,2381.3,1.1826]
[1728038378456,0.42001,2381.2,2381.1,1.51]
[1728038378655,0.42006,2381.0,2380.9,1.2431]
[1728038378849,0.42006,2381.0,2380.9,2.7531]
[1728038388757,1.04997,2381.4,2380.9,2.7531]
[1728038388960,1.51,2381.4,2380.9,2.7531]
[1728038389262,0.42004,2381.1,2380.9,3.17316]
[1728038392058,1.4521,2381.3,2380.9,2.7531]
[1728038392262,0.42005,2381.0,2380.9,2.7531]
[1728038397059,0.42005,2381.0,2380.9,1.2431]
[1728038397461,0.42005,2381.0,2380.9,0.8503]
[1728038397659,0.82265,2381.0,2380.9,0.8503]
[1728038398462,0.82265,2381.0,2380.9,0.4273]
[1728038398658,6.1126,2381.0,2380.7,4.049]
[1728038398862,0.42008,2380.8,2380.7,4.049]
[1728038399860,4.62008,2380.8,2380.7,3.2078]
[1728038400464,0.4201,2380.7,2380.6,0.8197]
[1728038400664,0.8473,2380.7,2380.6,0.8197]
[1728038401060,5.0481,2380.7,2380.6,0.8197]
[1728038404470,0.8473,2380.7,2380.6,0.8197]
[1728038405666,5.0481,2380.7,2380.6,0.8197]
[1728038408082,0.42012,2380.6,2380.5,0.4038]
[1728038408876,5.7108,2380.6,2380.3,0.8017]
[1728038409080,1.93016,2380.4,2380.3,1.2013]
[1728038409282,1.05051,2380.2,2379.8,4.82456354]
[1728038409579,0.42021,2380.1,2380.0,0.4183]
[1728038409970,4.62181,2380.1,2380.0,0.4183]
[1728038410576,1.066,2380.2,2380.0,1.9283]
[1728038410877,1.4862,2380.2,2380.0,2.34851]
[1728038412476,1.4862,2380.2,2380.0,0.4183]
[1728038412676,0.42021,2380.1,2380.0,0.4183]
[1728038413177,1.93021,2380.1,2380.0,0.4183]
[1728038419296,0.42021,2380.1,2380.0,0.4183]
[1728038421097,5.13798,2380.3,2380.1,0.4202]
[1728038421292,1.48517,2380.4,2380.2,0.82759]
[1728038421601,1.93017,2380.3,2380.2,0.4074]
[1728038422695,0.42021,2380.1,2380.0,0.4183]
[1728038422895,1.93021,2380.1,2380.0,0.8257]
[1728038426504,5.7116,2380.1,2379.6,3.3058]
[1728038426698,5.08097,2380.3,2379.8,0.8207]
[1728038426699,1.93024,2379.9,2379.8,0.8207]
[1728038427799,6.7766,2379.9,2379.6,3.2078]
[1728038428005,6.7766,2379.9,2379.6,3.6075]
[1728038428006,1.93028,2379.7,2379.6,3.6075]
[1728038428605,2.99525,2379.9,2379.6,5.1175]
[1728038428808,0.42025,2379.9,2379.7,0.42027]
[1728038429406,0.42024,2380.0,2379.7,0.42027]
[1728038430106,3.62555,2380.1,2379.7,0.42027]
[1728038430405,0.42023,2380.0,2379.8,0.42025]
[1728038430601,7.74647,2380.3,2379.9,0.3922]
[1728038430803,0.42023,2380.0,2379.9,0.7823]
[1728038431406,1.51,2380.1,2379.9,0.7823]
[1728038431407,1.93021,2380.1,2379.9,1.20253]
[1728038432007,0.42021,2380.1,2379.9,1.20253]
[1728038432307,1.93023,2380.0,2379.9,0.7823]
[1728038432507,1.05064,2379.9,2379.6,3.2078]
[1728038432714,1.93028,2379.7,2379.6,3.9901]
[1728038433612,0.42028,2379.7,2379.6,3.9901]
[1728038434004,0.82798,2379.7,2379.6,3.5979]
[1728038434606,0.42031,2379.5,2379.4,0.3938]
[1728038434805,0.42031,2379.5,2379.4,0.8061]
[1728038436315,0.42031,2379.5,2379.4,0.4123]
[1728038437415,0.42037,2379.2,2379.1,0.4202]
[1728038437610,0.42036,2379.3,2379.1,1.24589]
[1728038440120,0.42036,2379.3,2379.2,0.3974]
[1728038449723,0.42037,2379.2,2379.1,0.8255]
[1728038449912,0.42039,2379.1,2379.0,3.2078]
[1728038450111,0.83179,2379.1,2379.0,3.2078]
[1728038451022,0.42038,2379.2,2379.0,3.2078]
[1728038451220,0.42038,2379.2,2379.0,3.6282]
[1728038451919,3.70036,2379.3,2379.0,3.6282]
[1728038452120,4.67885,2379.6,2379.1,0.42037]
[1728038452121,1.096,2379.5,2379.1,0.42037]
[1728038452322,0.42035,2379.3,2379.1,0.42037]
[1728038452617,0.42035,2379.3,2379.2,0.4089]
[1728038462725,1.93034,2379.4,2379.2,0.4089]
[1728038463027,0.42034,2379.4,2379.3,0.7951]
[1728038463232,0.42034,2379.4,2379.3,1.21545]
[1728038464227,0.42034,2379.4,2379.3,0.7951]
[1728038464628,1.93034,2379.4,2379.3,0.7951]
[1728038465324,1.93034,2379.4,2379.3,1.21545]
[1728038465522,1.93034,2379.4,2379.3,0.7951]
[1728038466416,1.93034,2379.4,2379.3,1.21545]
[1728038466832,1.93034,2379.4,2379.3,0.7951]
[1728038467031,1.93034,2379.4,2379.3,1.21545]
[1728038468231,1.51,2379.4,2379.3,1.21545]
[1728038468627,0.42033,2379.5,2379.3,1.21545]
[1728038468628,1.93033,2379.5,2379.3,1.21545]
[1728038468926,1.93033,2379.5,2379.4,0.42033]
[1728038470231,1.93033,2379.5,2379.3,1.21543]
[1728038470434,0.42033,2379.4,2379.3,1.21543]
[1728038470635,1.93033,2379.5,2379.3,1.21543]
[1728038471030,1.93033,2379.5,2379.3,0.7951]
[1728038471230,1.93033,2379.5,2379.4,0.42033]
[1728038472638,1.93033,2379.5,2379.3,1.21544]
[1728038473736,1.93033,2379.5,2379.4,0.42033]
[1728038474332,1.51,2379.6,2379.3,0.7951]
[1728038474528,5.28454,2380.1,2379.4,1.51]
[1728038474529,1.9246,2379.8,2379.4,1.51]
[1728038474746,0.42029,2379.7,2379.6,0.4203]
[1728038474938,1.51,2379.8,2379.4,4.7178]
[1728038474939,1.51,2379.8,2379.5,0.4056]
[1728038475131,0.4203,2379.6,2379.5,0.8259]
[1728038475333,0.42029,2379.7,2379.6,0.42029]
[1728038475840,0.4203,2379.6,2379.5,0.82591]
[1728038477344,1.51,2379.8,2379.5,0.82591]
[1728038477345,0.42029,2379.7,2379.6,0.4203]
[1728038477546,1.93028,2379.8,2379.7,0.42028]
[1728038478040,1.93027,2379.8,2379.7,0.42028]
[1728038478549,0.4146,2379.9,2379.5,0.4056]
[1728038478743,0.42026,2379.8,2379.7,0.42027]
[1728038483848,2.34485,2379.9,2379.8,0.42026]
[1728038484549,0.42027,2379.8,2379.7,0.42027]
[1728038488650,2.34485,2379.9,2379.8,0.42026]
[1728038495457,1.93025,2379.9,2379.8,0.42026]
[1728038499852,1.93023,2380.0,2379.9,0.42023]
[1728038500559,0.4275,2380.1,2379.9,5.7116]
[1728038500762,1.608,2380.4,2380.0,1.51]
[1728038501065,1.93022,2380.1,2380.0,0.42022]
[1728038501262,0.42024,2379.9,2379.8,6.37515]
[1728038501582,1.93024,2379.9,2379.8,3.2078]
[1728038508165,0.42026,2379.8,2379.7,0.42028]
[1728038508971,0.42026,2379.8,2379.6,0.42028]
[1728038509160,0.42026,2379.8,2379.6,0.4203]
[1728038509669,0.42026,2379.8,2379.5,1.2262]
[1728038509971,1.51,2379.9,2379.7,0.42027]
[1728038509972,1.93026,2379.9,2379.7,0.42027]
[1728038510360,0.42026,2379.8,2379.7,0.42027]
[1728038513876,0.42026,2379.8,2379.5,1.2262]
[1728038514066,0.42026,2379.8,2379.7,0.42028]
[1728038517370,0.42026,2379.8,2379.5,1.2262]
[1728038517668,0.42026,2379.8,2379.6,0.42029]
[1728038518270,0.42026,2379.8,2379.7,0.42028]
[1728038520070,0.42027,2379.8,2379.6,3.62809]
[1728038520270,1.51,2379.9,2379.6,3.2078]
[1728038520472,1.93026,2379.9,2379.7,0.42028]
[1728038520676,1.93026,2379.9,2379.8,0.3926]
[1728038532182,1.93024,2379.9,2379.8,0.3926]
[1728038534371,0.42024,2379.9,2379.8,0.3926]
[1728038534582,0.42024,2379.9,2379.8,0.81286]
[1728038535779,0.42024,2379.9,2379.8,0.3926]
[1728038536492,0.42024,2379.9,2379.8,0.81286]
[1728038536978,0.42024,2379.9,2379.8,0.3926]
[1728038540277,0.42024,2379.9,2379.8,0.81286]
[1728038540483,0.42024,2379.9,2379.8,0.3926]
[1728038544589,1.51,2379.9,2379.6,3.2078]
[1728038545084,0.42028,2379.7,2379.6,3.2078]
[1728038545480,0.81618,2379.7,2379.6,3.2078]
[1728038547489,0.81618,2379.7,2379.5,1.1952]
[1728038547490,0.4203,2379.6,2379.5,1.1952]
[1728038547683,0.4203,2379.6,2379.5,4.403]
[1728038548685,0.3959,2379.7,2379.5,4.82331]
[1728038548989,0.4203,2379.6,2379.5,4.82331]
[1728038549387,0.4203,2379.6,2379.5,4.403]
[1728038551997,0.42028,2379.7,2379.6,0.42029]
[1728038552193,2.56062,2379.9,2379.6,0.42029]
[1728038552381,0.42026,2379.8,2379.7,0.42027]
[1728038552587,0.42026,2379.9,2379.7,0.42028]
[1728038552997,0.42026,2379.9,2379.8,0.4236]
[1728038555089,0.3994,2380.0,2379.8,0.4236]
[1728038555286,4.35622,2380.4,2379.9,2.72134]
[1728038555485,0.4202,2380.2,2380.0,1.93022]
[1728038555694,0.42019,2380.2,2380.0,1.93022]
[1728038555992,0.42019,2380.2,2380.1,0.4201]
[1728038559997,1.93019,2380.2,2380.1,0.4201]
[1728038560292,0.42023,2380.0,2379.9,0.7911]
[1728038560498,0.42023,2380.0,2379.9,1.2132]
[1728038561102,0.42023,2380.0,2379.9,1.63344]
[1728038562519,0.42022,2380.1,2379.9,1.63344]
[1728038565314,0.42022,2380.1,2379.9,1.2132]
[1728038565807,0.42022,2380.1,2379.9,1.63343]
[1728038566408,2.35711,2380.2,2380.0,0.42022]
[1728038566616,0.42021,2380.1,2380.0,0.42022]
[1728038567015,0.42021,2380.1,2379.9,1.2132]
[1728038567211,0.42021,2380.1,2379.9,1.63343]
[1728038567814,1.9369,2380.2,2379.9,1.2132]
[1728038568018,2.3571,2380.2,2380.0,0.42021]
[1728038570221,0.42023,2380.0,2379.9,1.63344]
[1728038570413,0.42022,2380.1,2379.9,1.63344]
[1728038570815,0.42022,2380.1,2379.9,1.2132]
[1728038571119,1.9369,2380.2,2379.9,1.2132]
[1728038571522,1.9369,2380.2,2379.9,1.63344]
[1728038571523,0.42022,2380.1,2379.9,1.63344]
[1728038573124,0.42022,2380.1,2380.0,0.42023]
[1728038573417,0.42022,2380.1,2379.9,1.63343]
[1728038574014,0.42023,2380.0,2379.9,1.63343]
[1728038574224,0.42023,2380.0,2379.9,1.63344]
[1728038575425,5.32216,2380.5,2379.9,1.2132]
[1728038575426,4.2718,2380.5,2379.9,1.2132]
[1728038575619,1.4627,2380.4,2379.9,1.2132]
[1728038575826,1.93019,2380.3,2380.1,0.42019]
[1728038576120,1.93019,2380.3,2379.9,2.7232]
[1728038576324,1.93019,2380.3,2380.1,0.42019]
[1728038576714,1.93019,2380.3,2380.2,0.4017]
[1728038583022,1.51,2380.3,2380.2,0.4017]
[1728038583217,0.4123,2380.4,2380.2,0.4017]
[1728038583525,0.42016,2380.4,2380.3,2.72216]
[1728038583724,1.9025,2380.6,2380.3,2.302]
[1728038584030,0.42016,2380.4,2380.3,2.72217]
[1728038584220,0.3925,2380.6,2380.3,2.72217]
[1728038584423,1.05027,2380.7,2380.3,2.72217]
[1728038584424,2.56027,2380.7,2380.3,5.92996]
[1728038584627,0.42016,2380.4,2380.3,5.92996]
[1728038584925,0.42016,2380.4,2380.3,5.5098]
[1728038585120,0.42016,2380.4,2380.3,9.7106]
[1728038586426,0.42016,2380.4,2380.3,10.13077]
[1728038588724,2.56031,2380.6,2380.3,10.13077]
[1728038588925,0.42016,2380.4,2380.3,5.92997]
[1728038589226,2.56031,2380.6,2380.3,5.5098]
[1728038589430,0.42014,2380.5,2380.4,0.42015]
[1728038590228,0.42014,2380.5,2380.3,5.92996]
[1728038590425,0.42014,2380.5,2380.4,0.42016]
[1728038590819,0.42014,2380.5,2380.3,5.5098]
[1728038591025,0.42016,2380.4,2380.3,5.92996]
[1728038591527,1.51,2380.6,2380.3,9.7106]
[1728038591727,0.42015,2380.5,2380.4,0.42015]
[1728038593226,0.42015,2380.5,2380.4,1.93015]
[1728038593526,0.42014,2380.5,2380.4,1.93015]
[1728038598035,0.42016,2380.4,2380.3,4.41996]
[1728038598328,0.82506,2380.4,2380.3,4.41996]
[1728038600637,0.82506,2380.4,2380.3,1.21216]
[1728038600834,0.82506,2380.4,2380.3,4.41996]
[1728038601128,0.42017,2380.3,2380.2,0.82188]
[1728038601937,1.9149,2380.4,2380.3,0.42017]
[1728038601938,0.82506,2380.4,2380.3,0.42017]
[1728038602134,0.4049,2380.4,2380.2,0.4017]
[1728038602334,0.82506,2380.4,2380.3,0.42017]
[1728038604339,0.82506,2380.4,2380.2,0.82188]
[1728038604743,0.4049,2380.4,2380.2,0.82188]
[1728038605043,0.82506,2380.4,2380.2,0.82188]
[1728038606241,0.4049,2380.4,2380.2,0.82188]
[1728038608549,0.4049,2380.4,2380.3,0.42017]
[1728038612142,0.42015,2380.5,2380.3,0.42017]
[1728038616551,0.42015,2380.5,2380.4,0.4066]
[1728038621254,0.42015,2380.5,2380.4,0.82676]
[1728038621846,0.42015,2380.5,2380.4,0.4066]
[1728038622047,0.42015,2380.5,2380.4,0.82676]
[1728038622350,1.51,2380.6,2380.4,0.82676]
[1728038623557,0.42014,2380.5,2380.4,0.82676]
[1728038626147,0.42014,2380.5,2380.4,1.24976]
[1728038632549,1.93014,2380.6,2380.4,1.24976]
[1728038633064,1.93014,2380.6,2380.5,0.4239]
[1728038634557,0.42014,2380.6,2380.5,0.4239]
[1728038634859,0.81541,2380.7,2380.5,0.84404]
[1728038635662,0.42012,2380.6,2380.5,0.84404]
[1728038636058,0.42012,2380.6,2380.5,0.4239]
[1728038636464,0.42012,2380.6,2380.5,0.84404]
[1728038636859,0.42012,2380.6,2380.5,0.4239]
[1728038638770,1.93012,2380.6,2380.5,0.4239]
[1728038638960,1.05036,2380.5,2380.1,3.3058]
[1728038639162,0.42019,2380.2,2380.1,4.4046]
[1728038639359,1.93019,2380.2,2380.1,3.9886]
[1728038639667,6.13179,2380.2,2380.1,3.2078]
[1728038639858,0.42023,2380.0,2379.9,0.416]
[1728038640055,1.93023,2380.0,2379.9,0.416]
[1728038640561,1.9078,2380.1,2379.9,0.416]
[1728038640762,0.42023,2380.0,2379.9,0.416]
[1728038641164,2.32802,2380.1,2379.9,0.416]
[1728038641372,1.51,2380.0,2379.8,2.43057999]
[1728038641568,0.42024,2379.9,2379.8,1.64977999]
[1728038641764,0.83604,2379.9,2379.8,1.64977999]
[1728038642765,0.42024,2379.9,2379.8,1.64977999]
[1728038643071,0.42023,2380.0,2379.8,1.64977999]
[1728038643372,0.42023,2380.0,2379.8,2.07647999]
[1728038645386,0.42023,2380.0,2379.8,0.4267]
[1728038647875,0.42023,2380.0,2379.9,0.4062]
[1728038651672,0.42023,2380.0,2379.9,0.8003]
[1728038655486,1.9078,2380.1,2379.9,0.8003]
[1728038655688,0.81802,2380.1,2379.9,0.8003]
[1728038656183,0.42022,2380.1,2379.9,1.22054]
[1728038656576,0.4202,2380.2,2380.0,0.42023]
[1728038656784,0.42019,2380.2,2380.1,0.42]
[1728038662383,0.3961,2380.3,2380.1,0.42]
[1728038662580,2.56037,2380.5,2380.2,0.42019]
[1728038662781,0.42017,2380.4,2380.3,0.8144]
[1728038664579,1.93017,2380.4,2380.3,0.8144]
[1728038667493,0.42017,2380.4,2380.3,0.8144]
[1728038667886,0.42017,2380.4,2380.3,1.23457]
[1728038668286,0.42017,2380.4,2380.3,0.8144]
[1728038668991,0.3889,2380.5,2380.3,1.23457]
[1728038669391,0.80905,2380.5,2380.4,0.3919]
[1728038671293,0.42015,2380.5,2380.4,0.3919]
[1728038691318,1.93015,2380.5,2380.4,0.3919]
[1728038696033,1.51,2380.5,2380.3,0.8144]
[1728038696221,0.81706,2380.4,2380.3,0.8144]
[1728038699232,2.32706,2380.4,2380.3,0.8144]
[1728038700826,2.32706,2380.4,2380.2,0.4084]
[1728038700827,1.9069,2380.4,2380.2,0.4084]
[1728038701031,0.42019,2380.2,2380.1,3.2078]
[1728038701228,2.95733,2380.4,2380.0,0.8372]
[1728038701431,0.42021,2380.1,2380.0,0.8372]
[1728038702028,1.05048,2380.3,2380.0,0.8372]
[1728038702335,0.42021,2380.1,2380.0,1.25742]
[1728038702535,0.42021,2380.1,2380.0,0.8372]
[1728038702729,0.42021,2380.1,2380.0,5.0388]
[1728038703930,0.42021,2380.1,2380.0,0.8372]
[1728038707829,0.80911,2380.1,2380.0,0.8372]
[1728038709538,1.8989,2380.1,2379.7,3.2078]
[1728038709743,0.42026,2379.8,2379.7,4.431]
[1728038710734,0.42024,2380.0,2379.8,0.42025]
[1728038710935,2.981,2380.4,2379.9,1.51]
[1728038711135,1.51,2380.4,2380.0,1.9027]
[1728038711336,0.42019,2380.3,2380.1,2.7584]
[1728038711742,1.9151,2380.5,2380.1,2.3382]
[1728038712041,0.42019,2380.2,2380.1,2.3382]
[1728038712847,0.42019,2380.2,2380.1,0.8282]
[1728038713343,0.42019,2380.2,2380.1,1.2484]
[1728038713541,0.42019,2380.2,2380.1,0.8282]
[1728038714351,0.42019,2380.2,2380.1,1.24841]
[1728038715043,0.42019,2380.2,2380.1,0.8282]
[1728038715341,1.93019,2380.2,2380.1,0.8282]
[1728038717950,0.42017,2380.4,2380.2,0.42018]
[1728038718148,0.42017,2380.4,2380.3,0.4068]
[1728038718439,2.97294,2380.6,2380.3,0.82697]
[1728038718645,0.42014,2380.5,2380.4,0.4235]
[1728038718845,0.42014,2380.5,2380.4,0.8222]
[1728038735660,4.356,2380.9,2380.4,9.7408]
[1728038735862,0.42011,2380.7,2380.6,1.51]
[1728038736065,3.2078,2380.9,2380.7,0.42009]
[1728038736261,3.62788,2380.9,2380.8,1.60438]
[1728038736564,3.62788,2380.9,2380.8,1.1843]
[1728038736761,0.42008,2380.9,2380.8,1.1843]
[1728038746276,0.4065,2381.1,2380.8,1.1843]
[1728038746471,0.42005,2381.0,2380.9,1.93006]
[1728038748273,0.42005,2381.0,2380.9,1.51]
[1728038748472,0.42007,2380.9,2380.8,4.3921]
[1728038749085,0.42007,2380.9,2380.8,4.81218]
[1728038750179,0.42007,2380.9,2380.8,1.60438]
[1728038751977,1.93006,2381.0,2380.9,0.42007]
[1728038752180,0.42006,2381.0,2380.9,0.42007]
[1728038754176,0.42006,2381.0,2380.9,1.93007]
[1728038754582,0.42006,2381.0,2380.9,1.51]
[1728038754984,0.42006,2381.0,2380.9,1.93007]
[1728038755882,0.42006,2381.0,2380.9,1.51]
[1728038756692,0.42006,2381.0,2380.9,1.93007]
[1728038757391,0.42006,2381.0,2380.9,1.51]
[1728038758598,0.42006,2381.0,2380.9,1.93007]
[1728038758792,0.42006,2381.0,2380.8,1.1843]
[1728038759092,1.93007,2380.9,2380.8,0.793]
[1728038759291,0.4201,2380.7,2380.6,0.4059]
[1728038759487,0.4201,2380.7,2380.6,0.8343]
[1728038759688,0.4201,2380.7,2380.6,1.2503]
[1728038760901,0.4201,2380.7,2380.4,3.2078]
[1728038760902,0.42014,2380.5,2380.4,3.2078]
[1728038761093,0.42014,2380.5,2380.2,0.8219]
[1728038761094,0.42017,2380.3,2380.2,0.8219]
[1728038761286,1.51,2380.3,2380.0,0.4284]
[1728038761492,0.42023,2380.0,2379.9,5.68889476]
[1728038761793,1.93023,2380.0,2379.9,5.28299476]
[1728038763593,0.42023,2380.0,2379.9,5.28299476]
[1728038767905,1.89831,2380.2,2379.9,5.28299476]
[1728038767906,0.4269,2380.2,2379.9,5.28299476]
[1728038768096,1.063,2380.4,2380.1,0.42021]
[1728038768304,1.48316,2380.4,2380.2,0.82169]
[1728038768500,1.48316,2380.4,2380.2,1.23249]
[1728038769596,1.063,2380.4,2380.2,0.8123]
[1728038769795,0.42017,2380.3,2380.2,0.8123]
[1728038770495,1.063,2380.4,2380.2,0.8123]
[1728038770700,0.42017,2380.4,2380.2,1.23248]
[1728038770901,0.42017,2380.4,2380.3,0.42017]
[1728038771294,0.42017,2380.4,2380.2,1.23248]
[1728038771495,0.42017,2380.4,2380.3,1.51]
[1728038772500,0.42015,2380.5,2380.3,1.51]
[1728038772698,0.42015,2380.5,2380.3,1.93016]
[1728038772904,0.42015,2380.5,2380.4,0.4248]
[1728038775311,1.51,2380.6,2380.2,2.74249]
[1728038775607,0.42016,2380.4,2380.2,2.3223]
[1728038775799,0.42016,2380.4,2380.3,0.42017]
[1728038776404,0.42015,2380.5,2380.3,0.42017]
[1728038777112,1.51,2380.6,2380.2,2.3223]
[1728038777303,0.42017,2380.3,2380.2,2.3223]
[1728038778306,0.4091,2380.4,2380.2,2.74248]
[1728038778506,0.42017,2380.3,2380.2,2.3223]
[1728038779106,0.42017,2380.3,2380.2,2.74249]
[1728038779504,0.42017,2380.3,2380.2,2.3223]
[1728038783309,0.42017,2380.3,2380.2,0.8123]
[1728038783512,1.93017,2380.3,2380.2,0.4015]
[1728038787118,0.42023,2380.0,2379.9,0.418]
[1728038787319,1.93023,2380.0,2379.9,0.418]
[1728038787515,0.42026,2379.8,2379.7,4.0307]
[1728038787818,0.42026,2379.8,2379.7,4.4343]
[1728038788122,0.42026,2379.8,2379.7,4.85458]
[1728038788317,0.42026,2379.8,2379.7,4.4343]
[1728038789922,2.3443,2380.1,2379.7,5.9443]
[1728038790119,0.42025,2379.9,2379.8,0.42026]
[1728038790321,0.42024,2380.0,2379.8,0.42026]
[1728038790528,0.42024,2379.9,2379.8,0.42026]
[1728038790727,3.2078,2380.3,2379.7,5.9443]
[1728038791034,0.42022,2380.1,2379.9,1.93023]
[1728038791329,2.11345,2380.3,2379.9,1.93023]
[1728038791528,0.42022,2380.1,2380.0,0.4133]
[1728038792128,0.42026,2379.8,2379.7,4.0173]
[1728038792332,0.42026,2379.8,2379.7,4.4306]
[1728038793537,0.42025,2379.9,2379.7,4.85087]
[1728038793831,0.42024,2380.0,2379.9,0.42024]
[1728038794332,0.42024,2380.0,2379.8,1.51]
[1728038794635,0.42024,2380.0,2379.8,1.93025]
[1728038796033,2.56052,2380.2,2379.8,1.93025]
[1728038796236,0.42024,2380.0,2379.8,1.93025]
[1728038796436,0.42023,2380.0,2379.8,0.42025]
[1728038797634,0.3897,2380.1,2379.8,0.42025]
[1728038797823,0.42024,2379.9,2379.8,0.42025]
[1728038798023,0.3897,2380.1,2379.8,0.42025]
[1728038798227,0.42024,2380.0,2379.8,0.42025]
[1728038798428,0.3897,2380.1,2379.8,0.42025]
[1728038798429,0.42024,2379.9,2379.8,0.42025]
[1728038800536,0.42024,2379.9,2379.7,4.85087]
[1728038800930,0.42024,2379.9,2379.7,4.4306]
[1728038801131,0.42024,2379.9,2379.8,0.42026]
[1728038803134,0.42024,2379.9,2379.7,6.36087]
[1728038803334,0.42026,2379.8,2379.7,6.36087]
[1728038803936,0.42026,2379.9,2379.7,6.36087]
[1728038804630,0.42026,2379.8,2379.7,6.36087]
[1728038805227,2.95024,2380.1,2379.7,6.36087]
[1728038805432,0.42026,2379.9,2379.7,6.36087]
[1728038806140,0.42026,2379.8,2379.7,6.36087]
[1728038806443,0.42026,2379.8,2379.7,4.4306]
[1728038812245,0.42026,2379.8,2379.7,1.2228]
[1728038812446,0.42026,2379.8,2379.7,4.4306]
[1728038815439,0.42026,2379.8,2379.7,1.2228]